bitfinex/quotes_ETHUSD_20260228
["timestamp","ask_amount","ask_price","bid_price","bid_amount"]
[1772278958948,4.39576504,1869.0,1868.6,0.0011]
[1772278959749,5.73327552,1869.2,1868.6,1.86491996]
[1772278959948,5.73324899,1869.2,1868.6,1.86491996]
[1772278960355,0.001,1869.0,1868.6,1.86491996]
[1772278960647,0.001,1869.0,1868.7,1.33782843]
[1772278960648,4.01709101,1868.9,1868.7,1.33782843]
[1772278960853,4.01709101,1868.8,1868.5,0.0011]
[1772278962724,1.33782843,1868.7,1868.5,0.0011]
[1772278962923,5.57157923,1868.7,1868.5,0.0011]
[1772278965052,4.2337508,1868.6,1868.5,0.0011]
[1772278965237,4.2337508,1868.6,1868.4,0.0011]
[1772278966348,1.33797163,1868.5,1868.4,0.0011]
[1772278966549,5.57172243,1868.5,1868.4,0.0011]
[1772278967541,1.33795026,1868.6,1868.4,0.0011]
[1772278968851,4.2337508,1868.5,1868.4,0.0011]
[1772278969153,4.2337508,1868.5,1868.0,0.0011]
[1772278969154,4.2337508,1868.4,1868.0,0.0011]
[1772278969359,4.2337508,1868.3,1868.0,0.0011]
[1772278970847,1.33810497,1868.4,1868.0,0.0011]
[1772278971344,5.57185577,1868.4,1868.0,0.0011]
[1772278972465,4.2337508,1868.4,1868.0,0.0011]
[1772278972766,5.57180081,1868.4,1868.0,0.0011]
[1772278973346,4.2337508,1868.4,1868.0,1.33942976]
[1772278974265,5.57180293,1868.4,1868.1,0.0011]
[1772278974648,0.001,1868.3,1868.1,0.0011]
[1772278975970,4.2347508,1868.3,1867.4,1.80928842]
[1772278978066,4.2347508,1868.3,1867.6,1.80301113]
[1772278978067,5.57289783,1868.3,1867.6,1.80301113]
[1772278978776,4.2337508,1868.2,1867.6,1.80301113]
[1772278979764,1.33914703,1868.3,1867.6,1.80301113]
[1772278980269,4.2337508,1868.2,1867.7,3.13519507]
[1772278981048,0.001,1868.3,1867.8,1.79347513]
[1772278981394,0.001,1868.3,1867.9,1.79347513]
[1772278981747,5.35131997,1868.7,1868.1,1.79247513]
[1772278981748,4.2337508,1868.7,1868.1,1.79247513]
[1772278981977,4.2337508,1868.7,1868.0,5.28685585]
[1772278981978,4.2337508,1868.9,1868.3,1.79247513]
[1772278982273,1.33862198,1869.0,1868.5,1.78930533]
[1772278982274,0.001,1869.0,1868.5,1.78930533]
[1772278984270,0.001,1869.0,1868.6,3.12088684]
[1772278984978,0.001,1869.0,1868.7,1.78298681]
[1772278985377,0.001,1869.3,1868.8,1.77981617]
[1772278985767,0.001,1869.3,1869.0,1.77981617]
[1772278986277,0.001,1869.3,1869.1,3.11423736]
[1772278986578,0.001,1869.5,1869.2,1.77669523]
[1772278988469,0.001,1869.5,1869.3,3.10779054]
[1772278988866,0.001,1869.5,1869.4,1.77039152]
[1772278989066,0.001,1869.8,1869.4,1.77039152]
[1772278989566,0.001,1869.8,1869.5,1.76724496]
[1772278989769,0.001,1869.9,1869.5,1.76724496]
[1772278990358,0.001,1869.9,1869.5,4.20124496]
[1772278990568,0.001,1869.9,1869.6,1.33718442]
[1772278990772,0.001,1869.9,1869.7,1.76380819]
[1772278992572,0.001,1869.9,1869.8,1.33704139]
[1772278995385,0.001,1869.9,1869.8,1.74807426]
[1772278995758,0.001,1869.9,1869.6,3.08525868]
[1772278996054,0.001,1869.9,1869.0,5.350389]
[1772278996055,4.25512054,1869.9,1869.3,2.438]
[1772278996454,4.25512054,1869.9,1869.0,7.09846326]
[1772278996455,4.25512054,1869.9,1869.0,3.08563701]
[1772278996675,4.25512054,1869.9,1869.1,2.439]
[1772278996879,4.25512054,1869.9,1869.1,4.1839422]
[1772278997553,1.33704139,1869.8,1869.2,1.33747057]
[1772278997754,5.59116193,1869.8,1869.2,1.33747057]
[1772278999495,5.59216193,1869.8,1869.2,3.77547057]
[1772279000572,4.25512054,1869.8,1869.2,5.50788357]
[1772279000781,4.25412054,1869.7,1869.2,5.50788357]
[1772279001598,4.25412054,1869.7,1869.2,8.36173942]
[1772279002594,4.25412054,1869.5,1869.2,5.29185585]
[1772279002785,4.25412054,1869.5,1869.2,2.438]
[1772279003189,5.59129205,1869.7,1869.2,3.77546861]
[1772279004800,4.25412054,1869.6,1869.2,2.438]
[1772279004995,4.25412054,1869.6,1869.2,3.77546747]
[1772279005197,4.25412054,1869.6,1869.2,2.438]
[1772279006411,4.25412054,1869.6,1869.2,3.77546636]
[1772279007929,4.25512054,1869.8,1869.3,1.71076267]
[1772279008107,5.5921785,1869.8,1869.3,1.71076267]
[1772279008430,4.25412054,1869.7,1869.1,4.191376]
[1772279008727,4.25412054,1869.7,1869.2,2.442]
[1772279010645,4.25412054,1869.5,1869.1,4.19139296]
[1772279010821,4.25412054,1869.5,1869.1,1.33753711]
[1772279011024,4.25412054,1869.5,1869.3,0.0011]
[1772279013138,4.25412054,1869.5,1869.2,0.0011]
[1772279013139,4.25412054,1869.4,1869.2,0.0011]
[1772279016229,5.5914514,1869.4,1869.2,0.0011]
[1772279016746,4.25412054,1869.4,1869.2,0.0011]
[1772279019716,1.33728492,1869.5,1869.2,0.0011]
[1772279020027,4.25412054,1869.5,1869.2,0.0011]
[1772279021245,4.25412054,1869.5,1869.2,1.33857057]
[1772279022736,4.25412054,1869.5,1869.2,0.0011]
[1772279023846,5.5913991,1869.5,1869.2,0.0011]
[1772279024041,5.5913991,1869.5,1869.3,0.0011]
[1772279024221,0.001,1869.4,1869.3,0.0011]
[1772279029237,4.23019783,1869.7,1869.4,1.59510219]
[1772279031134,4.23019783,1869.7,1869.4,2.93241955]
[1772279031860,0.001,1869.7,1869.4,2.93241955]
[1772279032041,0.001,1869.7,1869.5,0.74466702]
[1772279032554,0.001,1869.7,1869.5,2.08189579]
[1772279033052,0.001,1869.7,1869.5,0.74466702]
[1772279033228,4.23019783,1869.7,1869.4,2.93240015]
[1772279035440,0.001,1869.7,1869.5,1.56513407]
[1772279035756,0.001,1869.7,1869.5,2.30980109]
[1772279035955,0.001,1869.7,1869.5,0.74466702]
[1772279036434,0.001,1869.7,1869.5,0.74576702]
[1772279036636,0.001,1869.6,1869.5,0.74576702]
[1772279037866,0.001,1869.6,1869.5,2.08302297]
[1772279038762,0.001,1869.6,1869.5,0.0011]
[1772279039143,4.23019783,1869.6,1869.5,0.0011]
[1772279043070,0.001,1869.6,1869.5,0.0011]
[1772279043753,0.001,1869.8,1869.6,1.52682188]
[1772279045879,0.001,1869.8,1869.6,2.86397297]
[1772279046178,4.23019783,1869.9,1869.8,1.4772391]
[1772279046179,0.001,1869.9,1869.8,1.4772391]
[1772279046552,0.001,1869.9,1869.7,1.4772391]
[1772279046960,4.23019783,1869.9,1869.6,2.81090456]
[1772279049086,4.23019783,1869.9,1869.7,0.0011]
[1772279049667,0.001,1869.9,1869.7,2.2104021]
[1772279049868,4.22919783,1870.2,1869.8,1.46463508]
[1772279050071,4.22919783,1870.2,1869.9,0.74466702]
[1772279050791,4.22919783,1870.2,1869.9,2.2031692]
[1772279051298,4.11790618,1870.3,1870.0,1.45407897]
[1772279052101,4.11790618,1870.3,1869.9,3.53126273]
[1772279053095,4.11790618,1870.5,1870.1,0.74466702]
[1772279053394,4.11790618,1870.5,1870.1,2.18990097]
[1772279053967,4.11790618,1870.5,1870.2,1.44523395]
[1772279056019,4.11790618,1870.5,1870.2,2.78198391]
[1772279056614,4.11790618,1870.4,1869.9,6.09239716]
[1772279056789,4.11790618,1870.4,1869.9,4.10573494]
[1772279056984,4.11790618,1870.4,1869.9,7.29940196]
[1772279057499,5.45452769,1870.4,1870.0,2.80448312]
[1772279058213,4.11790618,1870.4,1870.1,0.74466702]
[1772279058805,4.11790618,1870.3,1869.9,2.08157892]
[1772279059010,4.1335263,1870.6,1870.0,2.80110135]
[1772279059219,4.11790618,1870.5,1870.0,2.80110135]
[1772279059818,4.11790618,1870.5,1870.1,1.3368269]
[1772279061008,4.11790618,1870.5,1870.1,2.08149392]
[1772279061398,4.11790618,1870.5,1870.1,4.87245168]
[1772279061917,4.11790618,1870.5,1870.1,4.87355168]
[1772279062298,0.001,1870.4,1870.1,4.87355168]
[1772279062810,0.001,1870.4,1870.2,2.78759755]
[1772279065116,4.11790618,1870.5,1870.2,2.78759755]
[1772279065117,3.11890618,1870.5,1870.2,2.78759755]
[1772279065494,3.11890618,1870.5,1870.1,5.11451155]
[1772279066719,3.11890618,1870.5,1870.2,3.80319822]
[1772279067718,4.45545214,1870.5,1870.1,0.0011]
[1772279067898,4.45545214,1870.5,1870.1,3.80168846]
[1772279068500,3.11890618,1870.5,1870.1,3.80168846]
[1772279070721,3.11890618,1870.5,1870.2,1.33675542]
[1772279070941,3.11890618,1870.5,1870.2,5.12952822]
[1772279072552,3.11890618,1870.5,1870.2,3.7927728]
[1772279073739,3.11890618,1870.5,1870.2,5.12952661]
[1772279073942,3.11890618,1870.5,1870.2,3.7927728]
[1772279074740,0.001,1870.4,1870.2,3.7927728]
[1772279075114,0.001,1870.4,1870.2,5.12952674]
[1772279075615,0.001,1870.4,1870.2,3.7927728]
[1772279076242,0.001,1870.4,1870.2,5.12952653]
[1772279077538,4.11790618,1870.9,1870.2,6.22592621]
[1772279077743,4.11790618,1870.9,1870.3,2.466]
[1772279077941,4.11790618,1870.7,1870.3,2.466]
[1772279079469,4.11790618,1870.7,1870.3,3.80267744]
[1772279081651,4.11790618,1870.7,1870.3,7.56631229]
[1772279081980,3.92123519,1870.6,1870.1,0.0011]
[1772279082133,3.92123519,1870.4,1870.1,0.0011]
[1772279082332,3.92123519,1870.4,1869.8,1.33812997]
[1772279082544,3.92123519,1870.4,1869.8,0.0011]
[1772279083161,4.10408165,1870.2,1869.8,0.0011]
[1772279083463,4.10408165,1870.2,1869.8,5.09919651]
[1772279083634,4.10408165,1870.6,1869.9,3.76106206]
[1772279083956,1.33654103,1870.5,1869.8,3.75961926]
[1772279084140,4.10408165,1870.4,1869.8,3.75961926]
[1772279084950,4.10408165,1870.4,1869.8,0.0011]
[1772279085458,4.10408165,1870.4,1869.8,3.75705097]
[1772279086331,1.33668395,1870.3,1870.2,0.0011]
[1772279086530,5.4407656,1870.3,1870.2,0.0011]
[1772279086726,5.4417656,1870.3,1870.2,0.0011]
[1772279089752,4.10408165,1870.2,1870.0,0.0011]
[1772279090633,4.10408165,1870.1,1870.0,0.0011]
[1772279090832,4.10508165,1870.3,1870.0,0.0011]
[1772279091756,4.10508165,1870.3,1870.0,3.74179143]
[1772279094087,4.10508165,1870.3,1870.0,5.07867368]
[1772279094672,0.001,1870.3,1870.1,3.73302792]
[1772279097494,4.10508165,1870.3,1870.0,5.06341618]
[1772279098705,0.001,1870.3,1870.1,3.72289397]
[1772279099206,4.10508165,1870.3,1870.0,3.7214849]
[1772279099502,4.10508165,1870.3,1870.1,0.0011]
[1772279099666,0.001,1870.2,1870.1,0.0011]
[1772279101186,4.10508165,1870.2,1870.1,0.0011]
[1772279103087,0.001,1870.2,1870.1,3.71138787]
[1772279103888,0.001,1870.2,1870.1,0.0011]
[1772279103889,4.10508165,1870.2,1870.1,0.0011]
[1772279104209,4.10508165,1870.2,1870.0,0.0011]
[1772279106200,1.33778076,1870.2,1870.0,0.0011]
[1772279106406,4.10408165,1870.1,1870.0,0.0011]
[1772279106788,4.10408165,1869.9,1869.7,0.0011]
[1772279107194,4.10408165,1869.7,1869.3,0.0011]
[1772279107514,4.10408165,1869.7,1869.4,0.0044]
[1772279108388,4.10408165,1869.5,1869.4,0.0011]
[1772279111102,5.4413376,1869.5,1869.4,0.0011]
[1772279112350,4.10408165,1869.5,1869.4,0.0011]
[1772279112700,5.4413376,1869.5,1869.4,0.0011]
[1772279113325,1.3372383,1869.6,1869.4,0.0033]
[1772279113622,4.16051417,1869.7,1869.4,3.68816703]
[1772279114723,5.49834373,1870.1,1869.5,3.6846982]
[1772279114925,4.16051417,1870.0,1869.5,3.6846982]
[1772279115631,4.16051417,1870.0,1869.7,3.68223282]
[1772279116233,5.49741463,1870.0,1869.7,3.68223282]
[1772279116748,4.16051417,1870.0,1869.7,3.68223282]
[1772279116948,5.49741361,1870.0,1869.7,3.68223282]
[1772279118233,5.49741361,1870.0,1869.5,5.01207929]
[1772279118435,5.49741361,1870.0,1869.6,3.67487767]
[1772279119446,4.16051417,1870.0,1869.6,3.67487767]
[1772279120152,5.49742215,1870.0,1869.6,3.67487767]
[1772279121251,5.49742215,1870.0,1869.6,5.0120564]
[1772279121931,5.49742215,1870.0,1869.6,3.67487767]
[1772279123453,5.49742215,1870.0,1869.7,0.0011]
[1772279123652,0.001,1869.9,1869.7,0.0011]
[1772279124849,0.001,1869.9,1869.7,3.66129763]
[1772279125736,0.001,1869.9,1869.7,4.99840963]
[1772279126145,0.001,1869.9,1869.7,3.66129763]
[1772279129436,0.001,1870.2,1869.9,3.64700178]
[1772279129666,5.49828002,1870.2,1869.9,3.64700178]
[1772279129864,4.16151417,1870.2,1869.8,6.86415892]
[1772279130839,4.16151417,1870.2,1869.9,3.67412182]
[1772279131066,0.001,1870.2,1869.9,3.67412182]
[1772279131489,0.001,1870.2,1870.0,3.6601325]
[1772279133272,4.16151417,1870.2,1869.9,4.96956791]
[1772279135675,0.001,1870.1,1869.9,3.63260051]
[1772279136087,0.001,1870.1,1869.9,4.96956141]
[1772279136293,0.001,1870.1,1869.9,3.63260051]
[1772279136497,4.16151417,1870.1,1869.8,8.14947156]
[1772279136789,4.16151417,1870.1,1869.8,11.00332741]
[1772279139572,4.16151417,1870.1,1869.8,8.92615941]
[1772279139975,4.16151417,1870.1,1869.8,6.44615941]
[1772279140295,4.16151417,1870.1,1869.8,8.92715941]
[1772279140462,4.16151417,1870.1,1869.8,10.26419287]
[1772279142662,4.16151417,1870.1,1869.8,7.41033702]
[1772279142995,4.16151417,1870.1,1869.8,8.15449416]
[1772279143888,0.001,1870.1,1869.9,3.48327778]
[1772279144484,4.01788606,1870.1,1869.8,7.2892096]
[1772279144895,4.01788606,1870.1,1869.8,7.2952096]
[1772279147303,4.01788606,1870.1,1869.9,0.0011]
[1772279150783,4.01688606,1870.0,1869.9,0.0011]
[1772279153299,0.001,1870.1,1869.9,4.1125958]
[1772279153481,0.001,1870.1,1869.9,3.36843866]
[1772279154987,4.01788606,1870.1,1869.9,0.0011]
[1772279158118,0.001,1870.1,1869.9,0.0011]
[1772279158413,0.001,1870.1,1869.9,3.31442073]
[1772279158803,4.01788606,1870.1,1869.9,0.0011]
[1772279159009,0.001,1870.1,1869.9,3.30393618]
[1772279159391,0.001,1870.1,1870.0,0.0011]
[1772279167120,4.01788606,1870.1,1870.0,0.0011]
[1772279167909,0.001,1870.1,1870.0,0.0011]
[1772279168108,0.001,1870.3,1870.0,1.48941428]
[1772279168427,4.01688606,1870.5,1870.0,0.0011]
[1772279168640,4.7610432,1870.5,1870.0,0.0011]
[1772279169148,4.01688606,1870.3,1870.0,0.0011]
[1772279169538,6.09060709,1870.5,1870.0,3.9481152]
[1772279169539,4.01688606,1870.5,1870.0,3.9481152]
[1772279169747,8.14935971,1870.6,1870.3,3.20285806]
[1772279171449,4.01688606,1870.6,1870.3,3.20285806]
[1772279171822,0.001,1870.4,1870.3,3.20285806]
[1772279174434,3.62148846,1870.4,1870.1,0.0011]
[1772279174637,4.3646456,1870.2,1869.9,0.0011]
[1772279175019,4.3646456,1870.2,1869.8,0.0011]
[1772279175653,3.62048846,1869.9,1869.8,0.0011]
[1772279176978,4.95745835,1869.9,1869.8,0.0011]
[1772279177282,3.62048846,1869.9,1869.8,0.0011]
[1772279177495,4.95745835,1869.9,1869.8,0.0011]
[1772279178449,3.62048846,1869.9,1869.8,0.0011]
[1772279179692,4.95745835,1869.9,1869.8,0.0011]
[1772279180076,4.95734836,1870.1,1869.8,0.0011]
[1772279180282,3.62048846,1870.0,1869.8,0.0011]
[1772279181100,4.95739946,1870.0,1869.8,0.0011]
[1772279182001,3.62048846,1870.0,1869.8,0.0011]
[1772279182195,4.95739294,1870.0,1869.8,0.0011]
[1772279183206,4.95739294,1870.0,1868.1,3.07254249]
[1772279183207,3.62048846,1869.3,1868.1,3.07254249]
[1772279183405,3.62048846,1869.3,1868.1,3.81669963]
[1772279183406,3.62048846,1868.8,1868.1,3.81669963]
[1772279183580,3.62048846,1868.8,1868.3,3.81669963]
[1772279184697,4.95826921,1868.8,1868.3,3.81669963]
[1772279184878,8.31271769,1869.2,1868.3,3.81669963]
[1772279184879,4.95806708,1869.1,1868.5,3.90120576]
[1772279185480,3.62048846,1869.0,1868.5,3.90120576]
[1772279186591,3.62048846,1869.0,1868.5,3.15704862]
[1772279186984,4.95810628,1869.0,1868.5,1.33792693]
[1772279187183,4.95810628,1869.0,1868.4,5.35210969]
[1772279187184,2.65009011,1868.9,1868.4,1.3380126]
[1772279187607,6.60940211,1868.9,1868.4,1.3380126]
[1772279187982,6.60940211,1868.9,1868.5,0.06331016]
[1772279190085,3.959312,1868.8,1868.4,1.3380126]
[1772279190312,0.89528161,1868.7,1868.4,1.3380126]
[1772279190512,0.89528161,1868.7,1868.4,0.05122688]
[1772279190816,0.89528161,1868.7,1868.4,1.38921846]
[1772279191714,0.89528161,1868.7,1868.5,0.06975875]
[1772279193018,31.5393668,1884.5,1868.6,1.11766197]
[1772279193019,3.98913911,1869.4,1868.6,1.11766197]
[1772279193187,0.66833065,1869.3,1869.1,1.11766197]
[1772279193388,3.98913911,1869.6,1869.2,1.33747057]
[1772279193597,0.66833065,1869.5,1869.0,5.35030954]
[1772279194103,4.65746976,1869.5,1869.1,0.00619685]
[1772279196132,4.65746976,1869.5,1869.2,0.0011]
[1772279197603,3.98913911,1869.4,1869.2,0.0011]
[1772279198205,3.98913911,1869.4,1868.9,0.0011]
[1772279198420,3.98913911,1869.2,1868.5,5.35182533]
[1772279198808,0.66833065,1869.3,1868.5,5.35182533]
[1772279199012,3.98913911,1869.6,1868.9,1.11766197]
[1772279200203,3.98913911,1869.4,1868.7,4.95043638]
[1772279201346,3.98913911,1870.2,1869.4,0.80869465]
[1772279201518,3.98913911,1870.2,1869.2,1.48]
[1772279201519,3.99013911,1870.0,1869.2,1.48]
[1772279201722,3.99013911,1870.0,1869.3,1.11766197]
[1772279202636,3.98913911,1869.9,1869.4,1.33732748]
[1772279204747,3.98913911,1869.9,1869.2,1.33747057]
[1772279204941,3.99013911,1869.8,1869.3,1.11766197]
[1772279205421,3.99013911,1869.7,1869.2,1.33747057]
[1772279205942,3.99013911,1869.7,1869.3,1.11766197]
[1772279206320,3.99013911,1869.7,1869.2,1.33747057]
[1772279206321,3.98913911,1869.7,1869.2,1.33747057]
[1772279206516,3.99013911,1869.7,1869.2,1.33747057]
[1772279206844,3.99013911,1869.7,1869.3,1.11766197]
[1772279207453,3.99013911,1869.7,1869.2,1.33747057]
[1772279207454,3.98913911,1870.0,1869.5,1.11766197]
[1772279207612,0.001,1869.9,1869.5,1.11766197]
[1772279208552,0.001,1869.6,1869.5,1.11766197]
[1772279208915,0.001,1869.6,1869.5,2.45491792]
[1772279209514,3.99013911,1869.9,1869.5,2.45491792]
[1772279209712,0.001,1869.8,1869.5,2.45491792]
[1772279209925,3.98913911,1870.3,1869.6,1.11766197]
[1772279210150,3.98913911,1870.2,1869.6,1.11766197]
[1772279210553,3.98913911,1870.2,1869.8,1.11766197]
[1772279210725,3.98913911,1870.3,1869.8,1.11766197]
[1772279211828,3.98913911,1870.3,1869.9,1.33696989]
[1772279212339,3.98913911,1870.2,1869.5,1.11766197]
[1772279213838,3.98913911,1870.2,1869.6,1.33718442]
[1772279214747,4.09530743,1872.7,1872.1,7.99999999]
[1772279214930,4.09530743,1872.7,1870.2,1.77619016]
[1772279214931,3.98913911,1872.1,1871.3,1.11766197]
[1772279215330,3.99013911,1872.0,1871.7,1.11766197]
[1772279215656,0.001,1871.9,1871.5,1.11766197]
[1772279215841,0.001,1871.9,1871.5,2.4534535]
[1772279216550,3.98913911,1872.9,1871.7,1.11766197]
[1772279216751,3.98913911,1872.6,1871.7,3.62266197]
[1772279216951,3.98913911,1872.6,1871.7,1.11766197]
[1772279217146,3.98913911,1872.6,1871.8,1.11766197]
[1772279217434,3.98913911,1872.6,1871.5,3.84579153]
[1772279218235,3.98913911,1872.4,1871.5,1.33579153]
[1772279218460,3.98913911,1872.4,1871.5,3.84479153]
[1772279220175,3.98913911,1872.4,1871.5,1.33579153]
[1772279220338,3.98913911,1872.4,1871.7,1.33568413]
[1772279221663,0.001,1872.5,1871.8,5.19604936]
[1772279222162,0.001,1872.5,1871.9,2.505]
[1772279222361,3.99013911,1872.5,1872.0,1.33547008]
[1772279222935,3.99013911,1872.5,1871.6,2.505]
[1772279224243,3.98913911,1872.3,1871.5,1.33582687]
[1772279224450,3.98913911,1872.3,1871.5,3.83882687]
[1772279224838,3.98913911,1872.3,1871.5,1.33582687]
[1772279225042,3.98913911,1872.3,1871.4,1.33584405]
[1772279227169,1.33532742,1872.2,1871.2,8.19801096]
[1772279227469,1.33532742,1872.2,1871.3,2.85385585]
[1772279227470,3.98913911,1872.1,1871.3,2.85385585]
[1772279227863,3.98913911,1872.1,1871.1,9.0340904]
[1772279227864,3.98913911,1872.1,1871.1,6.68991372]
[1772279228063,3.98913911,1872.1,1871.1,3.83605787]
[1772279229270,3.98913911,1871.9,1871.1,3.83605787]
[1772279230865,3.98913911,1871.9,1871.1,1.33605787]
[1772279231065,3.98913911,1871.9,1871.2,2.499]
[1772279231768,5.32472084,1871.9,1871.3,1.33596964]
[1772279231956,3.98913911,1871.8,1871.3,1.33596964]
[1772279233585,3.98913911,1872.0,1871.3,1.33596964]
[1772279234158,5.32461135,1872.0,1871.4,0.0011]
[1772279234360,3.98913911,1872.0,1871.4,0.0011]
[1772279234979,5.32461851,1872.0,1871.4,0.0011]
[1772279235285,3.98913911,1871.9,1871.4,0.0011]
[1772279236767,3.98913911,1871.9,1871.4,2.4971]
[1772279238082,3.98913911,1872.1,1871.9,0.25126317]
[1772279238591,3.98913911,1872.0,1871.9,0.25126317]
[1772279240460,5.32460919,1872.0,1871.9,0.08216644]
[1772279240684,3.98913911,1872.1,1871.9,0.08216644]
[1772279241602,3.99013911,1872.2,1871.9,0.08216644]
[1772279242779,3.98913911,1872.1,1871.9,0.08216644]
[1772279243479,3.98913911,1872.1,1871.9,1.3355298]
[1772279243669,0.001,1872.2,1871.7,5.34258276]
[1772279244174,1.33480043,1873.0,1872.0,5.19604936]
[1772279244372,3.74583976,1872.9,1872.2,3.51750049]
[1772279244782,3.74583976,1872.7,1872.3,1.3352561]
[1772279245087,3.74583976,1872.7,1872.2,1.33527933]
[1772279245691,5.33932127,1872.9,1872.2,1.33527933]
[1772279245692,3.74583976,1872.9,1872.2,4.85277982]
[1772279246496,3.74583976,1872.9,1872.2,7.34877982]
[1772279248169,3.74583976,1872.8,1872.2,1.33527933]
[1772279248389,3.74583976,1872.8,1872.2,4.85277982]
[1772279250673,3.74583976,1872.8,1872.2,7.34777982]
[1772279250874,3.74583976,1872.8,1872.1,9.05103761]
[1772279250875,3.74583976,1872.7,1872.1,5.34144516]
[1772279251148,3.74583976,1872.7,1872.2,3.51750049]
[1772279251666,3.74583976,1872.7,1872.2,6.01350049]
[1772279252490,3.74583976,1872.7,1872.0,3.83454648]
[1772279253099,3.74583976,1872.5,1872.0,3.83454648]
[1772279254395,3.74583976,1872.5,1872.0,0.0011]
[1772279255107,3.74583976,1873.0,1872.5,0.80869465]
[1772279255310,3.74583976,1873.0,1872.1,8.7889335]
[1772279256987,1.33482834,1872.9,1872.1,6.2909335]
[1772279257188,5.0806681,1872.9,1872.2,6.01750049]
[1772279257716,3.74583976,1872.8,1872.2,6.01750049]
[1772279258311,3.74583976,1872.8,1872.1,2.499]
[1772279258503,3.74583976,1872.8,1872.0,4.85401003]
[1772279258504,3.74583976,1872.7,1872.0,0.0011]
[1772279259087,3.74583976,1872.5,1872.0,0.0011]
[1772279259695,3.74583976,1872.5,1872.1,0.0011]
[1772279262312,5.08100163,1872.5,1872.1,0.0011]
[1772279262517,3.69195961,1872.4,1872.1,0.0011]
[1772279264893,5.34057384,1872.5,1872.1,0.0011]
[1772279265214,3.60434505,1872.4,1872.1,0.0011]
[1772279267799,4.94039909,1872.6,1872.1,0.0011]
[1772279267998,4.94039909,1872.6,1872.1,3.64736192]
[1772279269521,3.60434505,1872.5,1872.1,0.0011]
[1772279269903,4.93951706,1872.5,1872.1,0.0011]
[1772279271841,3.60434505,1872.5,1872.2,0.0011]
[1772279272024,4.93946503,1872.5,1872.2,0.0011]
[1772279272226,3.60534505,1872.4,1872.2,0.0011]
[1772279276153,0.001,1872.4,1872.2,0.0011]
[1772279280244,3.60534505,1872.4,1872.0,0.0011]
[1772279280647,4.93960115,1872.3,1872.0,0.0011]
[1772279280818,3.60434505,1872.3,1872.0,0.0011]
[1772279281242,1.33619055,1872.4,1872.0,0.0011]
[1772279281243,0.001,1872.4,1872.0,3.60110342]
[1772279282353,1.33618708,1872.4,1872.0,3.60110342]
[1772279282522,3.60434505,1872.3,1872.0,0.0011]
[1772279283255,4.9396175,1872.3,1872.0,0.0011]
[1772279283548,3.60434505,1872.3,1872.0,0.0011]
[1772279284354,3.60434505,1872.3,1872.1,0.0011]
[1772279286564,3.60434505,1872.2,1871.8,0.0011]
[1772279287233,3.60434505,1872.0,1871.8,0.0022]
[1772279289366,4.93986799,1872.0,1871.8,0.0022]
[1772279290655,3.60434505,1872.0,1871.8,0.0022]
[1772279291426,4.9398202,1872.0,1871.8,0.0022]
[1772279293337,3.60434505,1872.0,1871.8,0.0022]
[1772279293669,4.92673592,1872.2,1871.8,0.0022]
[1772279293846,4.92673592,1872.2,1871.8,3.56423114]
[1772279294643,4.92673592,1872.2,1871.8,3.56313114]
[1772279295956,4.92673592,1872.2,1871.9,0.0011]
[1772279296260,4.92773592,1872.2,1871.9,0.0011]
[1772279297352,3.59235423,1872.2,1871.9,0.0011]
[1772279297553,4.9276848,1872.2,1871.9,0.0011]
[1772279297933,3.59135423,1871.9,1871.7,0.0011]
[1772279300269,4.92693944,1871.9,1871.7,0.0011]
[1772279302971,3.59135423,1871.8,1871.7,0.0011]
[1772279303270,4.33434014,1871.8,1871.4,0.0011]
[1772279303476,3.59135423,1871.5,1871.1,0.0011]
[1772279305153,1.33589825,1871.4,1871.1,0.0011]
[1772279305354,3.59135423,1871.3,1871.1,0.0011]
[1772279307379,4.92738599,1871.3,1871.1,0.0011]
[1772279308156,4.92738599,1871.3,1871.2,0.0011]
[1772279309678,4.92738599,1871.3,1871.0,0.0011]
[1772279309679,4.92733014,1871.3,1871.0,0.0011]
[1772279309874,3.59135423,1871.3,1871.0,0.0011]
[1772279310449,8.12412821,1871.6,1871.0,3.51447751]
[1772279310450,3.59135423,1871.5,1871.0,3.51447751]
[1772279310685,4.11679689,1871.6,1871.0,3.51447751]
[1772279310989,3.59135423,1871.5,1871.0,3.51447751]
[1772279311358,3.59135423,1871.7,1871.0,3.51447751]
[1772279311558,4.92797824,1871.8,1871.2,3.50950552]
[1772279311864,3.59135423,1871.7,1871.2,3.50950552]
[1772279313759,4.9270592,1871.7,1871.2,4.84549862]
[1772279314986,0.001,1871.8,1871.3,3.49798361]
[1772279315378,0.001,1871.8,1871.5,3.49418923]
[1772279315890,0.001,1871.8,1871.5,4.82997812]
[1772279316084,0.001,1871.8,1871.5,3.49418923]
[1772279316384,0.001,1871.8,1871.5,4.83000759]
[1772279316996,0.001,1871.8,1871.6,3.49040161]
[1772279317162,1.33552222,1872.0,1871.6,3.49040161]
[1772279317494,4.92773438,1872.2,1871.6,3.49040161]
[1772279317789,3.59135423,1872.1,1871.6,3.49040161]
[1772279317994,3.59135423,1872.1,1871.6,4.82613315]
[1772279317995,4.92678025,1872.1,1871.6,4.82613315]
[1772279318162,3.59135423,1872.0,1871.6,4.82613315]
[1772279319361,3.59135423,1872.0,1871.6,3.49040161]
[1772279320493,4.92682578,1872.0,1871.6,3.49040161]
[1772279320665,0.001,1871.9,1871.6,3.49040161]
[1772279321176,0.001,1871.9,1871.6,4.82614385]
[1772279321383,0.001,1871.9,1871.7,3.46977226]
[1772279322690,0.001,1871.9,1871.5,7.27083267]
[1772279322890,0.001,1871.9,1871.6,3.46504662]
[1772279324892,0.001,1871.9,1871.7,3.45780949]
[1772279325393,0.001,1871.9,1871.5,2.85385585]
[1772279325394,3.72376228,1871.8,1871.5,2.85385585]
[1772279325585,3.72376228,1871.8,1871.3,7.26316843]
[1772279326285,3.72376228,1871.8,1871.3,4.79016843]
[1772279326676,5.05941083,1871.8,1871.3,4.79016843]
[1772279327066,3.72376228,1871.6,1871.2,0.0011]
[1772279327387,3.72376228,1871.3,1871.0,0.0011]
[1772279328893,5.05977584,1871.3,1871.0,0.0011]
[1772279329997,3.72376228,1871.2,1871.0,0.0011]
[1772279330976,5.05985037,1871.2,1871.0,0.0011]
[1772279332407,5.05985037,1871.2,1871.1,0.0011]
[1772279333875,3.72376228,1871.2,1871.1,0.0011]
[1772279334698,5.04480332,1871.2,1871.1,0.0011]
[1772279338275,5.05964419,1871.5,1871.0,3.42666512]
[1772279338581,3.72376228,1871.4,1871.0,3.42666512]